[Event "56th Biel Festival MTO 2023"]
[White "Papaux,Steve"]
[Black "Rosen,Eric"]
[Site "Biel"]
[Round "1.44"]
[Annotator "ChessBase"]
[Result "1/2-1/2"]
[Date "2023.07.18"]
[WhiteElo "2064"]
[BlackElo "2344"]
[PlyCount "82"]
[TimeControl "60"]

1. d4 {[%emt 0:0:0]} d5 {[%emt 0:0:0]} 2. c4 {[%emt 0:0:0]} e6 {[%emt 0:0:0]} 3. Nf3 {[%emt 0:0:0]} Nf6 {[%emt 0:0:0]} 4. g3 {[%emt 0:0:0]} dxc4 {[%emt 0:0:0]} 5. Bg2 {[%emt 0:0:0]} Bb4+ {[%emt 0:0:0]} 6. Bd2 {[%emt 0:0:0]} c5 {[%emt 0:0:0]} 7. Bxb4 {[%emt 0:0:0]} cxb4 {[%emt 0:0:0]} 8. Qa4+ {[%emt 0:0:0]} Nc6 {[%emt 0:0:0]} 9. Ne5 {[%emt 0:0:0]} Bd7 {[%emt 0:0:0]} 10. Nxc6 {[%emt 0:0:0]} Bxc6 {[%emt 0:0:0]} 11. Bxc6+ {[%emt 0:0:0]} bxc6 {[%emt 0:0:0]} 12. Qxc6+ {[%emt 0:0:0]} Nd7 {[%emt 0:0:0]} 13. O-O {[%emt 0:1:31]} Rc8 {[%emt 0:0:0]} 14. Qa4 {[%emt 0:0:29]} a5 {[%emt 0:4:31]} 15. a3 {[%emt 0:4:21]} Qb6 {[%emt 0:12:21]} 16. axb4 {[%emt 0:1:49]} axb4 {[%emt 0:1:24]} 17. Nd2 {[%emt 0:1:53]} Qxd4 {[%emt 0:27:29]} 18. Qxb4 {[%emt 0:9:0]} Rb8 {[%emt 0:1:38]} 19. Qc3 {[%emt 0:0:40]} Qxc3 {[%emt 0:0:51]} 20. bxc3 {[%emt 0:0:7]} Ke7 {[%emt 0:1:9]} 21. Rfd1 {[%emt 0:13:25]} Nb6 {[%emt 0:9:3]} 22. Ra7+ {[%emt 0:2:27]} Kf6 {[%emt 0:0:38]} 23. Ne4+ {[%emt 0:0:14]} Kg6 {[%emt 0:0:26]} 24. h4 {[%emt 0:4:23]} f6 {[%emt 0:15:25]} 25. Rd6 {[%emt 0:7:9]} Nc8 {[%emt 0:2:24]} 26. h5+ {[%emt 0:3:20]} Kh6 {[%emt 0:2:23]} 27. Rc7 {[%emt 0:1:31]} Nxd6 {[%emt 0:1:42]} 28. Nxd6 {[%emt 0:0:5]} Rhf8 {[%emt 0:3:14]} 29. g4 {[%emt 0:2:7]} Rb2 {[%emt 0:10:34]} 30. Rc8 {[%emt 0:0:35]} Rd2 {[%emt 0:2:54]} 31. Rxf8 {[%emt 0:0:15]} Rxd6 {[%emt 0:0:5]} 32. Rc8 {[%emt 0:0:3]} f5 {[%emt 0:1:40]} 33. f3 {[%emt 0:1:34]} fxg4 {[%emt 0:2:23]} 34. fxg4 {[%emt 0:0:7]} Kg5 {[%emt 0:0:58]} 35. Rxc4 {[%emt 0:0:12]} e5 {[%emt 0:2:5]} 36. Kg2 {[%emt 0:3:4]} Rd1 {[%emt 0:1:3]} 37. Re4 {[%emt 0:2:30]} Rc1 {[%emt 0:0:56]} 38. c4 {[%emt 0:0:43]} Rc3 {[%emt 0:0:15]} 39. Kf2 {[%emt 0:5:32]} Kf6 {[%emt 0:0:2]} 40. Ke1 {[%emt 0:0:0]} Ke6 {[%emt 0:0:0]} 41. Kd2 {[%emt 0:0:0]} Rg3 {[%emt 0:0:0]} 1/2-1/2

[Event "56th Biel Festival MTO 2023"]
[White "Aarav Dengla"]
[Black "Prieb,Robert"]
[Site "Biel"]
[Round "1.45"]
[Annotator "ChessBase"]
[Result "1-0"]
[Date "2023.07.18"]
[WhiteElo "2343"]
[BlackElo "2060"]
[PlyCount "54"]
[TimeControl "60"]

1. e4 {[%emt 0:0:0]} c5 {[%emt 0:0:0]} 2. Nf3 {[%emt 0:0:0]} d6 {[%emt 0:0:0]} 3. d4 {[%emt 0:0:0]} cxd4 {[%emt 0:0:0]} 4. Nxd4 {[%emt 0:0:0]} Nf6 {[%emt 0:0:0]} 5. Nc3 {[%emt 0:0:0]} a6 {[%emt 0:0:0]} 6. Bd3 {[%emt 0:0:0]} e5 {[%emt 0:0:0]} 7. Nde2 {[%emt 0:0:0]} Be7 {[%emt 0:0:0]} 8. O-O {[%emt 0:0:0]} O-O {[%emt 0:0:4]} 9. Ng3 {[%emt 0:0:0]} Bg4 {[%emt 0:9:45]} 10. Qd2 {[%emt 0:2:14]} Nbd7 {[%emt 0:6:32]} 11. h3 {[%emt 0:2:14]} Be6 {[%emt 0:0:29]} 12. Nd5 {[%emt 0:0:12]} Nc5 {[%emt 0:10:16]} 13. c4 {[%emt 0:3:23]} Bxd5 {[%emt 0:5:27]} 14. exd5 {[%emt 0:4:23]} Nxd3 {[%emt 0:2:42]} 15. Qxd3 {[%emt 0:0:3]} Nd7 {[%emt 0:6:57]} 16. Nf5 {[%emt 0:14:21]} Re8 {[%emt 0:6:40]} 17. Qa3 {[%emt 0:1:33]} g6 {[%emt 0:7:41]} 18. Bh6 {[%emt 0:4:1]} b5 {[%emt 0:9:0]} 19. Rac1 {[%emt 0:4:38]} bxc4 {[%emt 0:7:40]} 20. Rxc4 {[%emt 0:0:32]} Nb6 {[%emt 0:2:8]} 21. Rc6 {[%emt 0:1:44]} Nxd5 {[%emt 0:2:5]} 22. Rd1 {[%emt 0:3:23]} Qd7 {[%emt 0:3:35]} 23. Nxe7+ {[%emt 0:0:41]} Nxe7 {[%emt 0:0:19]} 24. Rcxd6 {[%emt 0:2:5]} Qb5 {[%emt 0:1:2]} 25. g4 {[%emt 0:6:53]} Rab8 {[%emt 0:5:27]} 26. Rd7 {[%emt 0:2:56]} Rb7 {[%emt 0:2:4]} 27. Rd8 {[%emt 0:2:17]} f6 {[%emt 0:12:23]} 1-0

[Event "56th Biel Festival MTO 2023"]
[White "Pernutz,Hans-Gerhard"]
[Black "Huston,Gus"]
[Site "Biel"]
[Round "1.46"]
[Annotator "ChessBase"]
[Result "1/2-1/2"]
[Date "2023.07.18"]
[WhiteElo "2054"]
[BlackElo "2341"]
[PlyCount "81"]
[TimeControl "60"]

1. e4 {[%emt 0:0:0]} c5 {[%emt 0:0:0]} 2. Nf3 {[%emt 0:0:0]} d6 {[%emt 0:0:0]} 3. d4 {[%emt 0:0:0]} cxd4 {[%emt 0:0:0]} 4. Nxd4 {[%emt 0:0:0]} Nf6 {[%emt 0:0:0]} 5. Nc3 {[%emt 0:0:0]} Nc6 {[%emt 0:0:0]} 6. Bc4 {[%emt 0:0:0]} Qb6 {[%emt 0:0:0]} 7. Nb3 {[%emt 0:0:0]} e6 {[%emt 0:0:0]} 8. O-O {[%emt 0:0:0]} a6 {[%emt 0:0:0]} 9. a4 {[%emt 0:0:0]} Be7 {[%emt 0:0:0]} 10. a5 {[%emt 0:0:0]} Qc7 {[%emt 0:0:0]} 11. Be2 {[%emt 0:1:48]} Bd7 {[%emt 0:0:0]} 12. f4 {[%emt 0:7:58]} b5 {[%emt 0:0:0]} 13. axb6 {[%emt 0:0:33]} Qxb6+ {[%emt 0:0:0]} 14. Kh1 {[%emt 0:0:13]} a5 {[%emt 0:1:46]} 15. Bf3 {[%emt 0:3:46]} Rb8 {[%emt 0:15:33]} 16. Re1 {[%emt 0:6:55]} h5 {[%emt 0:12:31]} 17. Be3 {[%emt 0:25:27]} Qc7 {[%emt 0:0:17]} 18. Qe2 {[%emt 0:1:53]} Ng4 {[%emt 0:8:45]} 19. Bg1 {[%emt 0:8:4]} g5 {[%emt 0:2:33]} 20. Bxg4 {[%emt 0:8:34]} hxg4 {[%emt 0:0:12]} 21. Nd5 {[%emt 0:0:10]} Qd8 {[%emt 0:20:24]} 22. Nxe7 {[%emt 0:1:53]} Qxe7 {[%emt 0:0:2]} 23. Qxg4 {[%emt 0:3:54]} Rh4 {[%emt 0:14:26]} 24. Qxg5 {[%emt 0:0:49]} Qxg5 {[%emt 0:0:3]} 25. fxg5 {[%emt 0:0:11]} Rb5 {[%emt 0:2:31]} 26. Bf2 {[%emt 0:5:23]} Rg4 {[%emt 0:9:31]} 27. h4 {[%emt 0:1:32]} Rb4 {[%emt 0:0:47]} 28. Nxa5 {[%emt 0:2:56]} Nxa5 {[%emt 0:5:59]} 29. Rxa5 {[%emt 0:0:7]} Bc6 {[%emt 0:0:17]} 30. Kh2 {[%emt 0:2:14]} Rxb2 {[%emt 0:2:49]} 31. Kh3 {[%emt 0:0:45]} Rxe4 {[%emt 0:0:15]} 32. Rxe4 {[%emt 0:0:7]} Bxe4 {[%emt 0:0:2]} 33. Bd4 {[%emt 0:0:24]} Rxc2 {[%emt 0:0:16]} 34. Bf6 {[%emt 0:0:17]} Rxg2 {[%emt 0:3:4]} 35. Ra4 {[%emt 0:5:0]} Bd5 {[%emt 0:2:20]} 36. h5 {[%emt 0:1:26]} Rg1 {[%emt 0:0:15]} 37. h6 {[%emt 0:0:25]} e5 {[%emt 0:1:32]} 38. Ra7 {[%emt 0:1:3]} Rh1+ {[%emt 0:0:23]} 39. Kg3 {[%emt 0:0:13]} Be6 {[%emt 0:1:59]} 40. Kf2 {[%emt 0:0:0]} Bf5 {[%emt 0:0:0]} 41. Ra8+ {[%emt 0:0:0]} 1/2-1/2

[Event "56th Biel Festival MTO 2023"]
[White "Sutter,Oliver"]
[Black "Hornung,Hans"]
[Site "Biel"]
[Round "1.47"]
[Annotator "TA"]
[Result "1-0"]
[Date "2023.07.18"]
[WhiteElo "2313"]
[BlackElo "2047"]
[PlyCount "75"]
[TimeControl "60"]

{[%evp 10,75,101,73,86,77,72,71,79,68,66,77,78,38,26,31,31,24,48,60,88,81,97,110,118,0,0,0,50,0,0,0,0,0,0,0,0,0,0,0,20,0,5,11,299,299,349,362,343,352,349,332,470,353,474,463,670,389,373,354,360,345,361,358,363,356,415,408]} 1. d4 {[%emt 0:0:0]} Nf6 {[%emt 0:0:0]} 2. c4 {[%emt 0:0:0]} c5 {[%emt 0:0:0]} 3. d5 {[%emt 0:0:0]} e5 {[%emt 0:0:0]} 4. Nc3 {[%emt 0:0:0]} d6 {[%emt 0:0:0]} 5. e4 {[%emt 0:0:0]} Nbd7 {[%emt 0:0:0]} 6. g3 {[%emt 0:0:0]} g6 {[%emt 0:0:0] A56: Czech Benoni.} 7. Bg2 {[%emt 0:0:0]} a6 {[%emt 0:0:0][%cal Ob7b5]} 8. a4 {[%emt 0:0:0]} Bg7 {[%emt 0:0:0] White is better.} 9. Nh3 {[%emt 0:0:0]} O-O {[%emt 0:0:0]} 10. O-O {[%emt 0:0:0] [#]} a5 $146 {[%emt 0:8:12]} ({Predecessor:} 10... Ne8 11. Be3 b6 12. Qd2 Nc7 13. Bh6 Rb8 14. Bxg7 Kxg7 15. Qd3 Nf6 16. f4 Qe7 {0-1 Cumming,R (2253)-Tratar,M (2463) Pula op 33rd 2019 (5)} )11. f4 {[%emt 0:0:0]} exf4 $1 {[%emt 0:18:24]} 12. gxf4 {[%emt 0:0:0]} Nb6 {[%emt 0:2:54]} 13. Qd3 {[%emt 0:1:18]} Ng4 {[%emt 0:0:48]} 14. Nb5 {[%emt 0:7:56]} f5 {[%emt 0:1:4]} 15. Ng5 {[%emt 0:1:27]} fxe4 {[%emt 0:6:24]} 16. Bxe4 {[%emt 0:1:36]} Nf6 {[%emt 0:3:6] [#]} 17. Ne6 {[%emt 0:6:29] White has more active pieces.} (17. Bf3 $1 $16 )Bxe6 $11 {[%emt 0:0:33]} 18. dxe6 {[%emt 0:0:5]} d5 {[%emt 0:2:57]} ({Black should play} 18... Nxe4 $1 $11 19. Qxe4 d5 20. cxd5 Qxd5 )19. Bxd5 {[%emt 0:9:31]} (19. Bg2 $1 $14 )Nfxd5 {[%emt 0:3:27]} 20. cxd5 {[%emt 0:0:8]} Qxd5 {[%emt 0:1:31]} 21. Qxd5 {[%emt 0:2:54]} Nxd5 {[%emt 0:0:14]} 22. Ra3 {[%emt 0:0:52]} Rae8 {[%emt 0:4:30]} 23. Rd3 {[%emt 0:11:18]} Nb4 {[%emt 0:5:23]} 24. Rd6 {[%emt 0:0:54]} Nc6 {[%emt 0:5:54]} 25. Be3 {[%emt 0:5:42]} Nd4 {[%emt 0:0:39]} 26. Bxd4 {[%emt 0:2:2]} cxd4 {[%emt 0:1:22][%mdl 8192] [#] Black cannot hold the game after this.} (26... Bxd4+ $11 {and Black stays safe.} 27. Kg2 Re7 )27. Nc7 $1 $18 {[%emt 0:3:27]} Rc8 {[%emt 0:5:33]} 28. Rd7 {[%emt 0:4:10]} Bf6 {[%emt 0:4:35]} 29. e7 {[%emt 0:5:46] Against Rcd8} Bxe7 {[%emt 0:0:18]} 30. Rxe7 {[%emt 0:0:7]} Rfd8 {[%emt 0:0:26]} (30... d3 $142 31. Rd1 Rf7 32. Rxf7 Kxf7 )31. Ne6 {[%emt 0:15:51]} Rd5 {[%emt 0:6:21]} 32. f5 {[%emt 0:2:56]} ({Weaker is} 32. Rxb7 d3 $18 )gxf5 {[%emt 0:0:15]} (32... Rxf5 $142 33. Rxf5 gxf5 34. Rxb7 d3 )33. Nf4 {[%emt 0:0:47]} Rd6 {[%emt 0:1:55]} 34. Rf3 {[%emt 0:1:54]} ({Don't do} 34. Rxb7 d3 $18 )Rc1+ {[%emt 0:2:20]} 35. Kf2 {[%emt 0:0:36][%cal Of4e6] And now Ne6! would win.} Rc2+ {[%emt 0:4:55]} 36. Re2 {[%emt 0:0:13] White is winning.} Rdc6 {[%emt 0:2:23]} 37. Rd3 {[%emt 0:1:7]} Rxe2+ {[%emt 0:4:25]} 38. Nxe2 {[%emt 0:0:51] Weighted Error Value: White=0.24 (precise) /Black=0.37} 1-0

[Event "56th Biel Festival MTO 2023"]
[White "Schnell,Simon"]
[Black "Nie,Xinyang"]
[Site "Biel"]
[Round "1.48"]
[Annotator "TA"]
[Result "0-1"]
[Date "2023.07.18"]
[WhiteElo "2029"]
[BlackElo "2288"]
[PlyCount "88"]
[TimeControl "60"]

{[%evp 11,88,21,27,18,73,50,103,97,95,108,106,99,116,104,116,47,63,29,35,23,35,37,35,14,50,53,56,19,39,10,16,0,0,0,0,-32,0,0,0,-17,21,17,18,23,24,0,0,-12,0,-21,0,0,0,0,0,-196,-175,-593,-556,-541,-262,-256,-256,-256,-256,-263,-262,-406,-382,-380,-338,-509,-503,-503,-493,-691,-663,-741,-727]} 1. d4 {[%emt 0:0:0]} Nf6 {[%emt 0:0:0]} 2. c4 {[%emt 0:0:0]} e6 {[%emt 0:0:0]} 3. Nc3 {[%emt 0:0:0]} Bb4 {[%emt 0:0:0]} 4. e3 {[%emt 0:0:0]} b6 {[%emt 0:0:0]} 5. Nge2 {[%emt 0:0:0]} Bb7 {[%emt 0:0:0]} 6. a3 {[%emt 0:0:0]} Be7 {[%emt 0:0:0]} 7. Nf4 {[%emt 0:0:0] [#] E44: Nimzo-Indian: Rubinstein: 4...b6 5 Ne2.} g5 $146 {[%emt 0:0:0]} (7... O-O $11 {remains equal.} )({Predecessor:} 7... O-O 8. Bd3 d5 9. cxd5 exd5 10. b4 c5 11. bxc5 bxc5 12. dxc5 Nbd7 13. O-O Nxc5 14. Be2 Bd6 15. Nb5 Be5 16. Rb1 Nfe4 17. Bb2 Bxb2 18. Rxb2 {½-½ Izoria,Z (2599)-Nakamura,H (2781) PRO League Stage rapid 2018 (8)} )8. Nh5 {[%emt 0:2:42]} d5 {[%emt 0:0:0]} (8... Nxh5 $14 9. Qxh5 Bf6 )9. Nxf6+ $16 {[%emt 0:7:12] White is better.} (9. cxd5 {is more complex.} Nxd5 10. Qf3 Qd7 11. h4 )Bxf6 {[%emt 0:0:0]} 10. cxd5 {[%emt 0:0:6]} exd5 {[%emt 0:0:0]} 11. Be2 {[%emt 0:8:10]} Bg7 {[%emt 0:0:0]} 12. O-O {[%emt 0:2:27]} O-O {[%emt 0:0:0]} 13. Bf3 {[%emt 0:16:48]} ({White should play} 13. f4 $16 )f5 {[%emt 0:2:46]} 14. Qb3 {[%emt 0:24:10][%cal Rf3d5]} (14. b4 $5 {[%cal Rd1b3]} )c6 {[%emt 0:9:44]} 15. e4 {[%emt 0:0:30]} fxe4 {[%emt 0:0:30]} 16. Nxe4 {[%emt 0:0:30]} h6 {[%emt 0:0:30]} 17. Be3 {[%emt 0:0:30]} Nd7 {[%emt 0:0:30][%cal Of8f3]} (17... Rxf3 $5 18. gxf3 Qf8 $11 )18. Ng3 {[%emt 0:0:30]} Nf6 {[%emt 0:0:30]} 19. Nh5 {[%emt 0:0:30]} Bc8 {[%emt 0:2:20]} 20. Nxf6+ {[%emt 0:4:34]} Rxf6 {[%emt 0:0:30]} 21. Be2 {[%emt 0:8:20]} Bf5 {[%emt 0:0:6]} 22. a4 {[%emt 0:0:30]} Re6 {[%emt 0:0:30]} 23. Bd3 {[%emt 0:0:30]} Bxd3 {[%emt 0:0:30]} 24. Qxd3 {[%emt 0:0:30]} Qe7 {[%emt 0:0:30]} 25. a5 {[%emt 0:0:30] [#] Threatens to win with axb6.} Re8 {[%emt 0:0:30]} 26. axb6 {[%emt 0:0:30]} axb6 {[%emt 0:16:24]} 27. h3 {[%emt 0:4:25]} Re4 {[%emt 0:0:30]} 28. Rfd1 {[%emt 0:11:31]} Qd6 {[%emt 0:5:27]} 29. Rac1 {[%emt 0:0:30]} R8e6 {[%emt 0:0:30]} 30. Qa3 {[%emt 0:0:30]} Qd8 {[%emt 0:0:30]} 31. Ra1 {[%emt 0:1:18]} Qf6 {[%emt 0:0:11]} 32. Qa8+ {[%emt 0:1:26]} Kh7 {[%emt 0:1:33] ...g4 is the strong threat.} 33. Ra7 $2 {[%emt 0:3:36] [#]} (33. Qa4 $11 )g4 $1 $19 {[%emt 0:0:53] Hoping for ...gxh3.} ({Not} 33... Re7 34. Rxe7 Rxe7 35. Qa6 $11 )34. hxg4 {[%emt 0:0:47]} (34. Qb8 gxh3 35. Qg3 )Rxg4 {[%emt 0:0:4]} 35. Qb7 {[%emt 0:3:0]} Qg6 {[%emt 0:0:6]} (35... Qf5 $142 {[%cal Og4g2] ( -> ...Rxg2+!)} 36. f3 Rgg6 )36. Qxg7+ {[%emt 0:1:25]} Qxg7 {[%emt 0:0:4]} 37. Rxg7+ {[%emt 0:0:6]} Rxg7 {[%emt 0:0:6][%mdl 4096] Endgame KRR-KRB} 38. Ra1 {[%emt 0:0:22]} h5 {[%emt 0:0:42]} 39. g3 {[%emt 0:0:59]} (39. Kh2 $142 )h4 {[%emt 0:0:17]} 40. Bf4 {[%emt 0:0:0]} hxg3 {[%emt 0:0:0]} 41. fxg3 {[%emt 0:0:0]} (41. Be5 {is a better defense.} gxf2+ 42. Kxf2 Rf7+ 43. Ke2 )Re2 {[%emt 0:0:0] Black is clearly winning.} 42. b3 {[%emt 0:0:0]} Rb2 {[%emt 0:0:0]} 43. Rc1 {[%emt 0:0:0]} (43. Bd6 $142 )Ra7 {[%emt 0:0:0]} 44. Kf1 {[%emt 0:0:0]} Raa2 {[%emt 0:0:0] Weighted Error Value: White=0.52/Black=0.20 (precise)} 0-1

[Event "56th Biel Festival MTO 2023"]
[White "Schnepp,Gunnar"]
[Black "Jaivardhan Raj"]
[Site "Biel"]
[Round "1.49"]
[Annotator "TA"]
[Result "1-0"]
[Date "2023.07.18"]
[WhiteElo "2278"]
[BlackElo "2009"]
[PlyCount "48"]
[TimeControl "60"]

{[%evp 15,48,10,17,9,14,5,8,7,10,0,115,122,130,128,131,103,97,95,133,129,151,161,143,157,161,145,161,162,155,129,473,447,463,454,472]} 1. d4 {[%emt 0:0:0]} Nf6 {[%emt 0:0:0]} 2. c4 {[%emt 0:0:0]} e6 {[%emt 0:0:0]} 3. Nc3 {[%emt 0:0:0]} Bb4 {[%emt 0:0:0]} 4. e3 {[%emt 0:0:0]} b6 {[%emt 0:0:0]} 5. Bd3 {[%emt 0:2:42]} Bb7 {[%emt 0:0:0]} 6. Nf3 {[%emt 0:0:4]} O-O {[%emt 0:0:0]} 7. O-O {[%emt 0:1:8]} d5 {[%emt 0:0:0] 7...d5 has lost popularity.} 8. a3 {[%emt 0:13:44]} Bd6 {[%emt 0:2:22]} 9. b4 {[%emt 0:1:5] E52: Nimzo-Indian: Rubinstein: 4...0-0 5 Nf3 d5 6 Bd3 b6.} dxc4 {[%emt 0:10:47]} 10. Bxc4 {[%emt 0:0:30]} c5 {[%emt 0:0:30] [#]} 11. dxc5 $146 {[%emt 0:33:38][%mdl 64] Discovered Attack. The position is equal.} ({Predecessor:} 11. bxc5 bxc5 12. Nb5 Be7 13. Bb2 a6 14. Nc3 Nbd7 15. Qe2 Bxf3 16. Qxf3 cxd4 17. exd4 {0-1 Marek,H (2015)-Spassov,L (2382) EU-ch Seniors 05th 2005 (1)} )bxc5 {[%emt 0:13:41]} 12. Nb5 {[%emt 0:0:30]} Bd5 {[%emt 0:0:30]} (12... Be7 $11 )13. Bxd5 $1 $16 {[%emt 0:0:30]} exd5 {[%emt 0:0:30] [#]} 14. Bb2 $1 {[%emt 0:2:18] Black must now prevent Bxf6.} Ne4 {[%emt 0:9:54]} 15. Nxd6 {[%emt 0:0:30]} (15. Qxd5 $2 {loses.} Bxh2+ 16. Kxh2 Qxd5 $19 )Qxd6 {[%emt 0:0:30]} 16. bxc5 {[%emt 0:0:30]} Qxc5 {[%emt 0:0:30]} 17. Rc1 {[%emt 0:1:33]} Qd6 {[%emt 0:6:26] [#]} 18. Nd4 $1 {[%emt 0:13:45] Inhibits Nc6. Strongly threatening Nf5.} ({Don't play} 18. Qd4 $6 f6 $14 )Qd7 {[%emt 0:7:42] Prevents Nf5} 19. Qd3 {[%emt 0:2:21]} a5 {[%emt 0:7:57]} 20. Rfd1 {[%emt 0:14:30]} Rd8 {[%emt 0:24:52]} 21. f3 {[%emt 0:0:30]} Nd6 {[%emt 0:0:30]} 22. Ba1 {[%emt 0:0:30] White is more active.} Nb7 $2 {[%emt 0:0:30][%mdl 8192]} (22... h6 $16 {is a better chance.} 23. Rc5 Na6 24. Rxd5 (24. Rxa5 Nc4 $14 )Nc7 )23. Nf5 $18 {[%emt 0:0:30]} f6 {[%emt 0:0:30]} 24. Qb1 {[%emt 0:0:30]} Qf7 {[%emt 0:0:30] Weighted Error Value: White=0.04 (flawless) /Black=0.50} 1-0

[Event "56th Biel Festival MTO 2023"]
[White "Rohith Krishna S"]
[Black "Bu,Xiangzhi"]
[Site "Biel"]
[Round "2.1"]
[Annotator "RC"]
[Result "0-1"]
[Date "2023.07.19"]
[WhiteElo "2429"]
[BlackElo "2676"]
[PlyCount "84"]
[TimeControl "60"]

1. Nf3 {[%emt 0:0:0]} Nf6 {[%emt 0:0:0]} 2. g3 {[%emt 0:0:0]} c5 {[%emt 0:0:0]} 3. Bg2 {[%emt 0:0:0]} Nc6 {[%emt 0:0:0]} 4. O-O {[%emt 0:0:0]} g6 {[%emt 0:0:0]} 5. c4 {[%emt 0:0:0]} Bg7 {[%emt 0:0:5]} 6. Nc3 {[%emt 0:0:0]} O-O {[%emt 0:0:8]} 7. d3 {[%emt 0:1:56]} d5 {[%emt 0:2:8]} 8. cxd5 {[%emt 0:6:27]} Nxd5 {[%emt 0:0:4]} 9. Bd2 {[%emt 0:0:11]} e6 {[%emt 0:3:30]} 10. Rc1 {[%emt 0:2:47]} Nde7 {[%emt 0:10:0]} 11. a3 {[%emt 0:6:48]} b6 {[%emt 0:3:5]} 12. Qa4 {[%emt 0:12:23]} Bd7 {[%emt 0:5:31]} 13. Qc2 {[%emt 0:2:11]} e5 {[%emt 0:14:22]} 14. Qb1 {[%emt 0:2:49]} a5 {[%emt 0:0:30]} 15. b3 {[%emt 0:3:47]} h6 {[%emt 0:0:42]} 16. Rfd1 {[%emt 0:16:56]} Rc8 {[%emt 0:5:49]} 17. e3 {[%emt 0:2:8]} Bf5 {[%emt 0:9:21]} 18. Be1 {[%emt 0:2:19]} Qd7 {[%emt 0:0:35]} 19. Na4 {[%emt 0:7:32]} Rb8 {[%emt 0:0:12]} 20. Nb2 {[%emt 0:3:7]} Rfd8 {[%emt 0:2:23]} 21. Bc3 {[%emt 0:6:33]} Bg4 {[%emt 0:6:16]} 22. Nc4 {[%emt 0:7:7]} Qe6 {[%emt 0:2:29]} 23. e4 {[%emt 0:3:35]} h5 {[%emt 0:7:24]} 24. Re1 {[%emt 0:5:55]} Bxf3 {[%emt 0:7:19]} 25. Bxf3 {[%emt 0:0:7]} Bh6 {[%emt 0:0:3]} 26. Rcd1 {[%emt 0:0:42]} Nd4 {[%emt 0:4:31]} 27. Bg2 {[%emt 0:0:8]} Nec6 {[%emt 0:1:8]} 28. h4 {[%emt 0:0:42]} Rd7 {[%emt 0:2:26]} 29. Bd2 {[%emt 0:4:49]} b5 {[%emt 0:2:49]} 30. Nxa5 {[%emt 0:1:33]} Bxd2 {[%emt 0:0:18]} 31. Nxc6 {[%emt 0:0:6]} Bxe1 {[%emt 0:0:42]} 32. Nxb8 {[%emt 0:0:5]} Bxf2+ {[%emt 0:0:10]} 33. Kxf2 {[%emt 0:0:5]} Rd8 {[%emt 0:0:28]} 34. Rc1 {[%emt 0:1:4]} Qb6 {[%emt 0:3:43]} 35. Na6 {[%emt 0:2:17]} Nxb3 {[%emt 0:0:59]} 36. Rd1 {[%emt 0:1:46]} c4+ {[%emt 0:0:26]} 37. Kf1 {[%emt 0:0:12]} Qxa6 {[%emt 0:0:11]} 38. Kg1 {[%emt 0:0:11]} Qxa3 {[%emt 0:0:46]} 39. dxc4 {[%emt 0:0:6]} Rxd1+ {[%emt 0:0:14]} 40. Qxd1 {[%emt 0:0:5]} bxc4 {[%emt 0:0:5]} 41. Kh2 {[%emt 0:30:6]} c3 {[%emt 0:30:25]} 42. g4 {[%emt 0:0:13]} Nd4 {[%emt 0:0:19]} 0-1

[Event "56th Biel Festival MTO 2023"]
[White "Nguyen,Ngoc Truong Son"]
[Black "Huang,Qian"]
[Site "Biel"]
[Round "2.2"]
[Annotator "RC"]
[Result "1/2-1/2"]
[Date "2023.07.19"]
[WhiteElo "2645"]
[BlackElo "2422"]
[PlyCount "29"]
[TimeControl "60"]

1. e4 {[%emt 0:0:0]} c5 {[%emt 0:0:0]} 2. Nf3 {[%emt 0:0:0]} Nc6 {[%emt 0:0:0]} 3. Bb5 {[%emt 0:0:0]} e6 {[%emt 0:0:0]} 4. Bxc6 {[%emt 0:0:0]} bxc6 {[%emt 0:0:0]} 5. O-O {[%emt 0:0:0]} Ne7 {[%emt 0:0:21]} 6. Re1 {[%emt 0:0:0]} Qc7 {[%emt 0:4:52]} 7. d3 {[%emt 0:0:36]} Ng6 {[%emt 0:5:24]} 8. c3 {[%emt 0:7:22]} Be7 {[%emt 0:20:46]} 9. d4 {[%emt 0:4:22]} O-O {[%emt 0:1:41]} 10. Be3 {[%emt 0:3:23]} f5 {[%emt 0:15:21]} 11. exf5 {[%emt 0:2:13]} Rxf5 {[%emt 0:0:25]} 12. dxc5 {[%emt 0:0:36]} Bxc5 {[%emt 0:0:16]} 13. Bxc5 {[%emt 0:1:10]} Rxc5 {[%emt 0:0:10]} 14. Nbd2 {[%emt 0:19:55]} Bb7 {[%emt 0:2:43]} 15. b4 {[%emt 0:1:16]} 1/2-1/2

[Event "56th Biel Festival MTO 2023"]
[White "Vantika Agrawal"]
[Black "Aryan Chopra"]
[Site "Biel"]
[Round "2.3"]
[Annotator "RC"]
[Result "0-1"]
[Date "2023.07.19"]
[WhiteElo "2428"]
[BlackElo "2626"]
[PlyCount "126"]
[TimeControl "60"]

1. d4 {[%emt 0:0:0]} g6 {[%emt 0:0:0]} 2. c4 {[%emt 0:0:0]} Bg7 {[%emt 0:0:0]} 3. e4 {[%emt 0:0:0]} d6 {[%emt 0:0:0]} 4. Nc3 {[%emt 0:0:0]} e5 {[%emt 0:0:0]} 5. Nf3 {[%emt 0:5:40]} Nc6 {[%emt 0:0:0]} 6. Bg5 {[%emt 0:8:6]} Nge7 {[%emt 0:0:0]} 7. dxe5 {[%emt 0:4:33]} dxe5 {[%emt 0:0:0]} 8. Qxd8+ {[%emt 0:0:47]} Nxd8 {[%emt 0:0:0]} 9. Nd5 {[%emt 0:10:30]} Nxd5 {[%emt 0:0:0]} 10. cxd5 {[%emt 0:0:0]} c6 {[%emt 0:0:0]} 11. Bc4 {[%emt 0:6:32]} cxd5 {[%emt 0:0:0]} 12. Bxd5 {[%emt 0:1:42]} Be6 {[%emt 0:0:0]} 13. Rd1 {[%emt 0:1:9]} f6 {[%emt 0:5:5]} 14. Be3 {[%emt 0:0:44]} Rf8 {[%emt 0:4:1]} 15. Ke2 {[%emt 0:3:38]} Rf7 {[%emt 0:0:42]} 16. Bxe6 {[%emt 0:2:16]} Nxe6 {[%emt 0:0:5]} 17. Rd5 {[%emt 0:0:44]} Rc7 {[%emt 0:6:52]} 18. Rc1 {[%emt 0:4:16]} Rxc1 {[%emt 0:1:35]} 19. Bxc1 {[%emt 0:0:5]} Rc8 {[%emt 0:0:22]} 20. Be3 {[%emt 0:1:0]} Bf8 {[%emt 0:11:17]} 21. Rd1 {[%emt 0:25:10]} b6 {[%emt 0:18:52]} 22. b3 {[%emt 0:2:16]} Ba3 {[%emt 0:17:8]} 23. g3 {[%emt 0:3:4]} Ke7 {[%emt 0:3:52]} 24. h4 {[%emt 0:1:5]} h5 {[%emt 0:1:22]} 25. Ne1 {[%emt 0:5:25]} f5 {[%emt 0:4:58]} 26. Rd5 {[%emt 0:5:5]} Bd6 {[%emt 0:1:41]} 27. f3 {[%emt 0:0:37]} Nc7 {[%emt 0:2:10]} 28. Rd2 {[%emt 0:4:32]} fxe4 {[%emt 0:2:21]} 29. fxe4 {[%emt 0:0:15]} Nb5 {[%emt 0:0:4]} 30. Bg5+ {[%emt 0:5:43]} Ke6 {[%emt 0:0:11]} 31. Nd3 {[%emt 0:0:11]} Nc3+ {[%emt 0:4:50]} 32. Ke3 {[%emt 0:0:8]} b5 {[%emt 0:0:5]} 33. Rc2 {[%emt 0:0:50]} b4 {[%emt 0:1:23]} 34. Rc1 {[%emt 0:0:47]} a5 {[%emt 0:8:23]} 35. Bh6 {[%emt 0:0:36]} Bb8 {[%emt 0:2:52]} 36. Bg7 {[%emt 0:0:31]} Ba7+ {[%emt 0:3:55]} 37. Kf3 {[%emt 0:0:10]} Rd8 {[%emt 0:0:7]} 38. Nxe5 {[%emt 0:0:50]} Rg8 {[%emt 0:0:52]} 39. Nxg6 {[%emt 0:0:27]} Rxg7 {[%emt 0:0:6]} 40. Nf4+ {[%emt 0:0:17]} Ke5 {[%emt 0:3:41]} 41. Nxh5 {[%emt 0:0:0]} Rd7 {[%emt 0:0:0]} 42. Nf4 {[%emt 0:0:0]} Rd2 {[%emt 0:0:0]} 43. h5 {[%emt 0:0:0]} Rh2 {[%emt 0:8:44]} 44. Ng6+ {[%emt 0:0:0]} Ke6 {[%emt 0:4:45]} 45. Kg4 {[%emt 0:0:0]} Be3 {[%emt 0:2:49]} 46. Rf1 {[%emt 0:0:0]} Rxa2 {[%emt 0:2:6]} 47. e5 {[%emt 0:0:0]} Nd5 {[%emt 0:1:2]} 48. Rf8 {[%emt 0:0:0]} a4 {[%emt 0:0:13]} 49. Rd8 {[%emt 0:1:11]} Rd2 {[%emt 0:6:33]} 50. Rd6+ {[%emt 0:4:26]} Kf7 {[%emt 0:0:2]} 51. e6+ {[%emt 0:0:36]} Kg7 {[%emt 0:2:49]} 52. Rd7+ {[%emt 0:4:43]} Kf6 {[%emt 0:0:7]} 53. e7 {[%emt 0:2:52]} Nxe7 {[%emt 0:3:24]} 54. Rxe7 {[%emt 0:1:34]} Bc5 {[%emt 0:0:3]} 55. Re1 {[%emt 0:7:6]} a3 {[%emt 0:0:14]} 56. Nf4 {[%emt 0:1:25]} a2 {[%emt 0:0:45]} 57. h6 {[%emt 0:8:53]} Bd4 {[%emt 0:0:6]} 58. h7 {[%emt 0:2:58]} Kf7 {[%emt 0:0:9]} 59. Ne6 {[%emt 0:3:53]} a1=Q {[%emt 0:0:29]} 60. Ng5+ {[%emt 0:0:34]} Kg7 {[%emt 0:0:47]} 61. Re7+ {[%emt 0:0:0]} Kf8 {[%emt 0:0:0]} 62. Rd7 {[%emt 0:0:0]} Qd1+ {[%emt 0:0:0]} 63. Nf3 {[%emt 0:0:0]} Rd3 {[%emt 0:0:0]} 0-1